bitfinex/quotes_SOLUSD_20250901
["timestamp","ask_amount","ask_price","bid_price","bid_amount"]
[1756686827655,9.37898635,199.53,199.52,41.87]
[1756686828581,8.87898635,199.53,199.52,41.87]
[1756686828880,13.89076402,199.53,199.52,41.87]
[1756686829049,26.0,199.5,199.48,0.03]
[1756686829249,8.71898635,199.49,199.48,0.03]
[1756686829457,9.37898635,199.49,199.48,0.03]
[1756686829775,8.71898635,199.49,199.48,0.03]
[1756686830482,9.37898635,199.49,199.48,0.03]
[1756686830852,8.71898635,199.49,199.48,0.03]
[1756686831052,5.67221083,199.52,199.5,0.03]
[1756686831263,4.08391551,199.63,199.5,0.03]
[1756686831264,8.71898635,199.51,199.5,0.03]
[1756686831768,9.37898635,199.51,199.5,0.03]
[1756686833099,5.01206914,199.52,199.5,0.03]
[1756686833259,8.71898635,199.51,199.5,0.03]
[1756686834106,5.86962629,199.53,199.5,0.03]
[1756686834311,5.86962629,199.53,199.51,41.86]
[1756686834604,5.86962629,199.54,199.51,41.86]
[1756686835677,5.86962629,199.53,199.51,41.86]
[1756686836386,5.86962629,199.53,199.52,41.86]
[1756686836589,5.86962629,199.53,199.5,0.03]
[1756686836590,6.52962629,199.53,199.5,0.03]
[1756686836764,0.66,199.52,199.51,41.86]
[1756686837086,6.52962629,199.52,199.51,41.86]
[1756686837658,11.54165515,199.52,199.51,41.86]
[1756686838083,6.52962629,199.52,199.51,41.86]
[1756686838268,0.66,199.52,199.51,41.86]
[1756686838471,5.86962629,199.52,199.51,41.86]
[1756686839167,6.52962629,199.52,199.5,0.03]
[1756686839361,5.86962629,199.51,199.5,0.03]
[1756686839564,10.88190637,199.51,199.5,0.03]
[1756686839775,11.54190637,199.51,199.5,0.03]
[1756686841196,5.86962629,199.51,199.5,0.03]
[1756686841566,5.86962629,199.53,199.5,14.33559401]
[1756686842485,5.86962629,199.52,199.5,13.62559401]
[1756686843885,10.88177822,199.52,199.5,0.03]
[1756686844196,6.53962629,199.51,199.5,0.03]
[1756686844624,6.53962629,199.51,199.48,0.03]
[1756686844899,5.86962629,199.49,199.48,0.03]
[1756686845104,5.86962629,199.49,199.48,1e-08]
[1756686845311,6.53962629,199.49,199.47,0.2]
[1756686845594,5.86962629,199.48,199.47,0.2]
[1756686845892,5.86962629,199.48,199.37,0.69]
[1756686845893,17.54913758,199.44,199.37,23.32]
[1756686846089,5.86962629,199.38,199.37,23.32]
[1756686847987,11.55517448,199.38,199.3,0.2]
[1756686848175,5.86962629,199.31,199.3,0.2]
[1756686848379,5.86962629,199.31,199.3,36.44]
[1756686849170,0.67,199.34,199.3,0.2]
[1756686849393,5.86962629,199.31,199.3,13.79559401]
[1756686850174,10.886936,199.31,199.3,0.2]
[1756686850403,5.86962629,199.31,199.3,0.2]
[1756686850572,10.886936,199.31,199.3,0.2]
[1756686850774,5.86962629,199.31,199.3,0.2]
[1756686852527,10.886936,199.31,199.3,0.2]
[1756686853704,10.886936,199.31,199.3,42.06]
[1756686854031,5.01703669,199.33,199.3,42.06]
[1756686854190,5.68703669,199.33,199.3,42.06]
[1756686854394,5.86962629,199.31,199.3,42.06]
[1756686855300,10.886936,199.31,199.3,42.06]
[1756686855695,10.886936,199.31,199.3,0.2]
[1756686856000,5.86962629,199.31,199.3,42.06]
[1756686856914,5.86962629,199.31,199.3,55.65559401]
[1756686857088,5.86962629,199.31,199.3,56.34559401]
[1756686857708,5.86962629,199.33,199.31,13.59559401]
[1756686858025,5.86962629,199.33,199.31,14.28559401]
[1756686859221,5.86962629,199.33,199.3,42.06]
[1756686859222,5.86962629,199.32,199.3,0.2]
[1756686859407,5.86962629,199.31,199.3,0.2]
[1756686859910,5.86962629,199.31,199.18,0.03]
[1756686859911,31.86962629,199.28,199.19,16.76]
[1756686860108,5.86962629,199.2,199.19,30.35559401]
[1756686860301,5.86962629,199.2,199.19,16.76]
[1756686860799,10.88970661,199.2,199.19,16.76]
[1756686861324,11.55970661,199.2,199.18,0.03]
[1756686861621,6.53962629,199.19,199.18,0.03]
[1756686862607,11.55995863,199.19,199.18,0.03]
[1756686865258,10.88995863,199.19,199.18,0.03]
[1756686865459,5.86962629,199.19,199.18,0.03]
[1756686866435,10.88995863,199.19,199.18,13.62559401]
[1756686866744,5.86962629,199.2,199.18,13.62559401]
[1756686867072,5.86962629,199.2,199.19,14.28559401]
[1756686867456,5.86962629,199.22,199.2,13.59559401]
[1756686867758,5.86962629,199.22,199.2,14.28559401]
[1756686867958,5.01882057,199.25,199.21,42.57]
[1756686868139,5.86962629,199.24,199.21,42.57]
[1756686868546,5.86962629,199.23,199.21,42.57]
[1756686868861,5.86962629,199.24,199.22,14.28559401]
[1756686869041,5.86962629,199.25,199.23,0.69]
[1756686869239,61.88,199.36,199.22,13.59559401]
[1756686869240,5.68703551,199.33,199.24,0.69]
[1756686869426,5.68703551,199.33,199.26,13.59559401]
[1756686869627,5.86962629,199.27,199.22,33.0]
[1756686869834,5.86962629,199.24,199.23,55.47559401]
[1756686870132,6.53962629,199.24,199.22,41.88]
[1756686870349,5.86962629,199.23,199.22,41.88]
[1756686870531,0.67,199.26,199.22,41.88]
[1756686870731,26.0,199.29,199.22,41.88]
[1756686870732,5.86962629,199.23,199.22,41.88]
[1756686870952,10.88895068,199.23,199.22,41.88]
[1756686871147,5.01932439,199.23,199.22,41.88]
[1756686871453,12.5462557,199.27,199.22,41.88]
[1756686871454,26.67,199.29,199.22,41.88]
[1756686871662,5.68784432,199.29,199.23,13.59559401]
[1756686871842,0.67,199.33,199.25,13.59559401]
[1756686872034,5.86962629,199.3,199.27,13.59559401]
[1756686872233,5.86962629,199.3,199.27,14.27559401]
[1756686872461,5.01705799,199.32,199.27,14.27559401]
[1756686872630,5.86962629,199.31,199.27,13.59559401]
[1756686872834,5.01579976,199.37,199.29,13.59559401]
[1756686873058,5.86962629,199.34,199.31,13.59559401]
[1756686873441,5.86962629,199.33,199.31,13.59559401]
[1756686873749,5.86962629,199.35,199.33,13.59559401]
[1756686873943,5.01579976,199.37,199.34,41.88]
[1756686874142,5.69559816,199.38,199.34,41.88]
[1756686874360,5.01559816,199.38,199.34,41.88]
[1756686874735,13.21604299,199.43,199.35,14.27559401]
[1756686874974,5.01454217,199.42,199.35,14.27559401]
[1756686875138,5.86962629,199.37,199.35,13.59559401]
[1756686875469,5.86962629,199.37,199.35,14.27559401]
[1756686875877,5.86962629,199.36,199.31,26.0]
[1756686876043,17.5508976,199.42,199.28,59.0]
[1756686876044,5.86962629,199.33,199.28,59.0]
[1756686876236,5.86962629,199.3,199.29,55.45559401]
[1756686876438,5.86962629,199.3,199.29,41.86]
[1756686877439,5.86962629,199.32,199.3,13.59559401]
[1756686877641,5.86962629,199.32,199.3,14.27559401]
[1756686877966,5.86962629,199.31,199.3,41.86]
[1756686878371,0.68,199.32,199.3,41.86]
[1756686878581,5.86962629,199.31,199.3,41.86]
[1756686879080,10.886936,199.31,199.3,41.86]
[1756686879461,5.01655463,199.34,199.3,42.54]
[1756686879664,5.86962629,199.31,199.3,42.54]
[1756686879865,5.86962629,199.31,199.3,41.86]
[1756686880674,5.86962629,199.31,199.26,13.59559401]
[1756686880675,6.54962629,199.31,199.27,41.86]
[1756686880879,0.68,199.3,199.27,41.86]
[1756686881083,10.88769132,199.28,199.27,41.86]
[1756686881295,10.88769132,199.28,199.2,13.59559401]
[1756686881296,24.1128539,199.28,199.2,13.59559401]
[1756686881456,5.86962629,199.21,199.19,0.68]
[1756686881774,5.86962629,199.21,199.2,55.45559401]
[1756686881958,0.68,199.27,199.21,13.59559401]
[1756686882159,5.86962629,199.24,199.21,13.59559401]
[1756686882359,5.86962629,199.24,199.22,0.68]
[1756686882564,5.86962629,199.23,199.18,0.03]
[1756686882762,0.68,199.24,199.2,13.59559401]
[1756686882960,5.86962629,199.22,199.2,14.27559401]
[1756686883169,5.0185687,199.26,199.22,13.59559401]
[1756686883360,5.0185687,199.26,199.24,13.59559401]
[1756686883587,0.68,199.3,199.24,13.59559401]
[1756686883588,5.86962629,199.25,199.24,13.59559401]
[1756686885255,10.88844686,199.25,199.24,13.59559401]
[1756686886279,11.56844686,199.25,199.21,0.03]
[1756686886588,5.01882057,199.25,199.22,55.43559401]
[1756686886756,5.86962629,199.23,199.22,55.43559401]
[1756686887087,6.54962629,199.23,199.21,0.03]
[1756686887291,17.56587201,199.25,199.21,0.03]
[1756686887292,11.56920263,199.22,199.21,0.03]
[1756686887996,5.86962629,199.22,199.21,0.03]
[1756686888300,6.54962629,199.22,199.21,0.03]
[1756686888531,6.54962629,199.22,199.21,1e-08]
[1756686889323,11.56920263,199.22,199.21,1e-08]
[1756686890627,29.98776978,199.22,199.17,21.63]
[1756686890828,5.86962629,199.17,199.15,0.03]
[1756686891328,10.89046276,199.17,199.15,0.03]
[1756686891528,5.02083647,199.17,199.15,0.03]
[1756686891733,10.89046276,199.17,199.15,0.03]
[1756686892701,5.02008032,199.2,199.15,0.03]
[1756686892887,5.86962629,199.19,199.17,13.59559401]
[1756686893082,5.86962629,199.19,199.17,14.27559401]
[1756686893325,10.89021068,199.18,199.16,0.03]
[1756686893622,5.86962629,199.17,199.16,0.71]
[1756686893995,5.02058439,199.18,199.17,13.59559401]
[1756686894318,5.86962629,199.18,199.17,0.68]
[1756686894631,5.01907247,199.24,199.17,6.54962629]
[1756686894915,10.88869876,199.24,199.19,13.59559401]
[1756686895115,5.01831685,199.27,199.21,13.59559401]
[1756686895419,5.86962629,199.26,199.22,0.68]
[1756686895588,5.86962629,199.27,199.24,13.59559401]
[1756686895917,5.86962629,199.27,199.26,13.59559401]
[1756686896319,17.62146512,199.3,199.25,13.59559401]
[1756686896519,0.06,199.3,199.26,0.68]
[1756686896700,0.06,199.3,199.26,6.54962629]
[1756686896903,0.06,199.3,199.24,41.84]
[1756686896904,0.06,199.3,199.28,13.59559401]
[1756686897158,0.06,199.3,199.27,6.54962629]
[1756686897159,0.06,199.3,199.29,61.3052203]
[1756686897425,0.06,199.3,199.29,55.43559401]
[1756686897632,0.06,199.3,199.29,56.11559401]
[1756686898008,0.06,199.3,199.29,14.27559401]
[1756686898311,0.06,199.3,199.29,56.11559401]
[1756686898511,0.06,199.3,199.29,61.9852203]
[1756686898717,0.06,199.3,199.29,56.11559401]
[1756686900196,0.06,199.3,199.29,61.9852203]
[1756686900612,0.06,199.3,199.29,14.27559401]
[1756686900812,0.06,199.3,199.29,56.09559401]
[1756686901103,0.06,199.3,199.29,61.9652203]
[1756686901308,0.06,199.3,199.29,94.9652203]
[1756686901516,0.06,199.3,199.29,47.27559401]
[1756686901836,0.06,199.3,199.29,120.9652203]
[1756686902198,0.06,199.3,199.29,73.27559401]
[1756686902390,5.42092629,199.34,199.3,13.59559401]
[1756686902595,5.42092629,199.34,199.3,14.28559401]
[1756686903031,5.01606224,199.36,199.3,14.28559401]
[1756686903220,13.21933422,199.38,199.3,20.1552203]
[1756686903221,5.86962629,199.35,199.3,20.1552203]
[1756686903448,5.86962629,199.33,199.3,13.59559401]
[1756686903727,0.68,199.33,199.31,41.82]
[1756686903939,25.07280818,199.42,199.32,14.28559401]
[1756686903940,5.01529665,199.39,199.32,14.28559401]
[1756686904248,5.01529665,199.39,199.34,13.59559401]
[1756686904395,5.01529665,199.39,199.36,13.59559401]
[1756686904594,5.69529665,199.39,199.37,41.82]
[1756686904817,5.01479713,199.41,199.38,13.59559401]
[1756686905143,5.86962629,199.4,199.38,13.59559401]
[1756686905359,10.88492294,199.39,199.38,13.59559401]
[1756686905528,10.88492294,199.39,199.38,41.82]
[1756686905721,11.56492294,199.39,199.38,41.82]
[1756686906120,11.56492294,199.39,199.34,13.59559401]
[1756686906442,0.68,199.38,199.36,41.8]
[1756686907437,10.88542605,199.37,199.34,13.59559401]
[1756686907638,5.86962629,199.35,199.31,41.8]
[1756686907820,5.86962629,199.35,199.28,13.59559401]
[1756686907821,5.86962629,199.32,199.24,13.62559401]
[1756686908020,5.86962629,199.28,199.26,13.59559401]
[1756686908650,0.68,199.32,199.26,13.59559401]
[1756686908651,5.86962629,199.27,199.26,13.59559401]
[1756686908945,0.68,199.32,199.26,13.59559401]
[1756686909150,5.86962629,199.28,199.26,13.59559401]
[1756686909353,10.88794314,199.27,199.26,13.59559401]
[1756686909728,11.56794314,199.27,199.25,41.8]
[1756686909931,6.54962629,199.26,199.25,41.8]
[1756686910119,6.54962629,199.26,199.24,0.03]
[1756686910323,5.01831685,199.27,199.24,0.03]
[1756686910324,6.54962629,199.25,199.24,0.03]
[1756686910846,6.54962629,199.25,199.22,0.03]
[1756686911055,5.86962629,199.23,199.22,0.03]
[1756686911422,10.88895068,199.23,199.22,0.03]
[1756686911622,11.56895068,199.23,199.22,0.03]
[1756686911817,24.11726167,199.23,199.19,41.8]
[1756686912022,5.86962629,199.2,199.19,41.8]
[1756686912229,5.86962629,199.2,199.16,13.62559401]
[1756686912433,5.86962629,199.19,199.18,13.59559401]
[1756686912966,5.86962629,199.2,199.18,13.59559401]
[1756686913170,5.86962629,199.19,199.18,13.59559401]
[1756686913349,10.88995863,199.19,199.18,13.59559401]
[1756686913757,10.88995863,199.19,199.14,0.03]
[1756686913758,26.0,199.16,199.14,0.03]
[1756686913971,5.86962629,199.15,199.13,1e-08]
[1756686914135,5.86962629,199.15,199.01,0.69]
[1756686914136,5.86962629,199.14,199.01,0.69]
[1756686914337,0.68,199.15,199.02,9.76962629]
[1756686914577,5.86962629,199.09,199.03,0.69]
[1756686914781,5.86962629,199.07,199.04,13.59559401]
[1756686914946,5.86962629,199.07,199.05,0.69]
[1756686915141,0.68,199.15,199.07,13.59559401]
[1756686915365,26.0,199.16,199.07,55.39559401]
[1756686915366,0.68,199.14,199.07,55.39559401]
[1756686915541,5.86962629,199.11,199.07,55.39559401]
[1756686915747,5.86962629,199.11,199.09,13.59559401]
[1756686916074,5.86962629,199.1,199.08,13.59559401]
[1756686916245,5.86962629,199.09,199.08,13.59559401]
[1756686916447,5.86962629,199.12,199.08,14.28559401]
[1756686916656,5.86962629,199.17,199.11,5.86962629]
[1756686916836,5.86962629,199.16,199.13,13.59559401]
[1756686917465,17.5685172,199.22,199.14,0.69]
[1756686917466,12.54894086,199.22,199.14,0.69]
[1756686917779,0.68,199.24,199.14,0.69]
[1756686917780,5.86962629,199.17,199.14,0.69]
[1756686917977,5.01982832,199.21,199.15,13.59559401]
[1756686918185,5.01982832,199.21,199.16,41.8]
[1756686918562,5.86962629,199.18,199.16,42.49]
[1756686918741,5.86962629,199.19,199.16,42.49]
[1756686919166,5.86962629,199.21,199.17,14.28559401]
[1756686919470,5.86962629,199.22,199.18,0.69]
[1756686919671,10.88915246,199.23,199.19,0.69]
[1756686919874,10.88915246,199.23,199.17,52.4652203]
[1756686919875,5.01756146,199.3,199.21,13.59559401]
[1756686920039,5.01756146,199.3,199.23,19.4652203]
[1756686920240,5.86962629,199.29,199.25,13.59559401]
[1756686920459,5.86962629,199.3,199.27,13.59559401]
[1756686920668,5.86962629,199.28,199.27,13.59559401]
[1756686921166,5.86962629,199.29,199.27,13.59559401]
[1756686921554,5.01734342,199.31,199.27,13.59559401]
[1756686921555,5.86962629,199.3,199.27,13.59559401]
[1756686921983,8.76348223,199.3,199.27,14.28559401]
[1756686922273,8.76348223,199.29,199.27,13.59559401]
[1756686922476,8.76348223,199.28,199.27,13.59559401]
[1756686922660,8.76348223,199.28,199.27,55.39559401]
[1756686922861,8.76348223,199.28,199.21,26.0]
[1756686923088,8.76348223,199.22,199.16,13.59559401]
[1756686923275,8.76348223,199.2,199.18,13.59559401]
[1756686923450,13.78365895,199.2,199.18,13.59559401]
[1756686923785,8.76348223,199.21,199.17,41.8]
[1756686923943,8.76348223,199.23,199.2,13.59559401]
[1756686924150,8.76348223,199.21,199.2,13.59559401]
[1756686924349,8.76348223,199.21,199.18,13.59559401]
[1756686924790,8.76348223,199.23,199.2,13.59559401]
[1756686925081,8.76348223,199.22,199.2,13.59559401]
[1756686925389,8.76348223,199.21,199.17,74.8]
[1756686925600,8.76348223,199.19,199.18,13.59559401]
[1756686926260,0.06,199.2,199.18,13.59559401]
[1756686926463,8.76348223,199.19,199.18,13.59559401]
[1756686926864,9.44348223,199.19,199.11,9.45348223]
[1756686927070,8.76348223,199.13,199.12,13.59559401]
[1756686927275,8.76348223,199.13,199.08,0.72]
[1756686927474,5.02285398,199.09,199.08,41.83]
[1756686927676,5.02285398,199.09,199.08,55.42559401]
[1756686927882,5.02285398,199.09,199.08,41.83]
[1756686928071,5.02209722,199.12,199.09,13.59559401]
[1756686928287,8.76348223,199.12,199.1,0.69]
[1756686928468,8.76348223,199.12,199.09,13.59559401]
[1756686928665,8.76348223,199.11,199.09,13.59559401]
[1756686929176,8.76348223,199.12,199.09,13.59559401]
[1756686929371,8.76348223,199.12,199.09,14.28559401]
[1756686929588,0.68,199.17,199.11,13.59559401]
[1756686929589,5.02083647,199.17,199.11,13.59559401]
[1756686929900,5.02083647,199.17,199.13,13.59559401]
[1756686930083,13.7843187,199.17,199.13,14.28559401]
[1756686930285,8.76348223,199.16,199.13,14.28559401]
[1756686930475,8.76348223,199.17,199.15,13.59559401]
[1756686930786,0.06,199.2,199.15,0.69]
[1756686931004,8.76348223,199.18,199.17,13.59559401]
[1756686931675,8.76348223,199.19,199.17,13.59559401]
[1756686931877,0.06,199.2,199.17,13.59559401]
[1756686932074,0.06,199.2,199.19,13.59559401]
[1756686932373,0.06,199.2,199.19,64.15907624]
[1756686932584,0.06,199.2,199.19,64.87907624]
[1756686932785,5.08008032,199.2,199.19,55.39559401]
[1756686933293,13.84356255,199.2,199.19,13.59559401]
[1756686933893,14.51356255,199.2,199.19,13.59559401]
[1756686934100,14.51356255,199.2,199.18,41.8]
[1756686934297,8.76348223,199.19,199.13,33.0]
[1756686934608,5.08008032,199.2,199.14,56.11559401]
[1756686935007,8.76348223,199.18,199.14,56.11559401]
[1756686935226,8.76348223,199.18,199.16,13.59559401]
[1756686935398,8.76348223,199.19,199.18,13.59559401]
[1756686935593,13.78381457,199.19,199.18,13.59559401]
[1756686935800,5.02033234,199.19,199.18,13.59559401]
[1756686935995,13.78381457,199.19,199.18,13.59559401]
[1756686936194,8.82348223,199.2,199.18,13.59559401]
[1756686936508,0.06,199.2,199.19,14.31559401]
[1756686937007,0.06,199.2,199.19,13.59559401]
[1756686937305,13.84356255,199.2,199.13,59.0]
[1756686937506,5.08008032,199.2,199.14,55.39559401]
[1756686937702,8.76348223,199.17,199.14,55.39559401]
[1756686938209,8.76348223,199.17,199.14,13.59559401]
[1756686938544,12.6102008,199.2,199.15,41.8]
[1756686938684,26.0,199.13,199.08,0.03]
[1756686938878,26.0,199.15,199.08,0.03]
[1756686939086,0.67,199.12,199.08,0.03]
[1756686939489,0.67,199.11,199.08,0.03]
[1756686939697,8.76348223,199.09,199.08,0.03]
[1756686940221,9.43348223,199.09,199.08,0.03]
[1756686940728,9.43348223,199.09,199.08,1e-08]
[1756686940902,18.19696446,199.09,199.06,1e-08]
[1756686941105,8.76348223,199.07,199.06,1e-08]
[1756686941496,9.43348223,199.07,199.06,1e-08]
[1756686941688,14.45684084,199.07,199.06,1e-08]
[1756686942321,14.45684084,199.07,199.0,0.902576]
[1756686942322,8.76348223,199.02,199.0,0.902576]
[1756686942524,8.76348223,199.01,199.0,0.902576]
[1756686943091,0.67,199.05,199.0,0.902576]
[1756686943308,8.76348223,199.01,199.0,0.902576]
[1756686943930,8.76348223,199.03,199.01,13.59559401]
[1756686944118,8.76348223,199.02,199.01,13.59559401]
[1756686944421,31.02285398,199.09,199.02,13.59559401]
[1756686944606,8.76348223,199.05,199.03,41.8]
[1756686944789,31.02285398,199.09,199.04,13.59559401]
[1756686944992,0.67,199.08,199.04,13.59559401]
[1756686945730,5.02335861,199.07,199.04,13.59559401]
[1756686945905,8.76348223,199.05,199.04,13.59559401]
[1756686946224,10.92140218,199.07,199.04,14.31559401]
[1756686946417,5.89804357,199.07,199.06,13.59559401]
[1756686946724,5.02315,199.08,199.04,13.59559401]
[1756686946897,5.89804357,199.1,199.06,0.72]
[1756686947092,5.02209722,199.12,199.08,13.59559401]
[1756686947297,5.89804357,199.1,199.08,14.31559401]
[1756686947535,5.89804357,199.09,199.08,13.59559401]
[1756686947701,11.59089755,199.09,199.06,13.59559401]
[1756686947905,5.89804357,199.07,199.06,13.59559401]
[1756686948313,5.69285398,199.09,199.06,13.59559401]
[1756686948314,5.89804357,199.08,199.06,13.59559401]
[1756686948513,5.89804357,199.07,199.06,13.59559401]
[1756686949121,10.92089755,199.09,199.06,13.59559401]
[1756686949321,5.02285398,199.09,199.08,13.59559401]
[1756686950226,5.02285398,199.09,199.06,13.59559401]
[1756686950414,5.02285398,199.09,199.07,0.72]
[1756686950619,5.02285398,199.09,199.08,13.59559401]
[1756686950620,10.92089755,199.09,199.08,13.59559401]
[1756686950935,10.92089755,199.09,199.07,41.8]
[1756686951121,5.69285398,199.09,199.08,13.59559401]
[1756686951320,11.59089755,199.09,199.08,13.59559401]
[1756686951508,10.92089755,199.09,199.08,13.59559401]
[1756686951905,23.47803251,199.09,199.03,0.72]
[1756686952231,5.89804357,199.05,199.03,13.59559401]
[1756686952413,17.57998894,199.09,199.05,13.59559401]
[1756686952927,18.24998894,199.09,199.05,13.59559401]
[1756686953730,5.89804357,199.06,199.05,13.59559401]
[1756686954036,10.92165454,199.06,199.05,13.59559401]
[1756686954410,5.89804357,199.08,199.05,14.31559401]
[1756686954608,134.46,199.18,199.07,13.59559401]
[1756686954609,17.57557496,199.14,199.07,13.59559401]
[1756686954934,5.89804357,199.08,199.07,13.59559401]
[1756686955325,0.67,199.1,199.03,13.59559401]
[1756686955524,5.89804357,199.07,199.05,13.59559401]
[1756686955712,17.57557496,199.14,199.05,13.59559401]
[1756686955713,5.89804357,199.08,199.05,14.31559401]
[1756686956044,5.02335861,199.07,199.06,13.59559401]
[1756686956334,10.92140218,199.07,199.06,13.59559401]
[1756686956911,10.92140218,199.07,199.04,41.8]
[1756686957209,5.89804357,199.05,199.04,55.39559401]
[1756686958049,10.92190692,199.05,199.04,55.39559401]
[1756686958251,5.0226017,199.1,199.05,13.59559401]
[1756686958449,5.89804357,199.08,199.05,13.59559401]
[1756686958636,5.89804357,199.06,199.05,13.59559401]
[1756686959249,5.89804357,199.08,199.05,14.31559401]
[1756686959555,5.89804357,199.08,199.06,0.72]
[1756686959751,5.0226017,199.1,199.07,41.8]
[1756686960048,10.92114985,199.08,199.07,55.39559401]
[1756686960346,10.92114985,199.08,199.06,41.8]
[1756686960555,5.89804357,199.07,199.06,55.39559401]
[1756686960856,5.02234945,199.11,199.06,56.11559401]
[1756686961081,5.02214329,199.12,199.07,20.21363758]
[1756686961237,10.92018686,199.12,199.08,0.72]
[1756686961442,5.89804357,199.09,199.04,0.72]
[1756686961640,5.89804357,199.08,199.06,13.59559401]
[1756686961836,5.89804357,199.09,199.06,14.31559401]
[1756686962170,5.89804357,199.07,199.01,33.0]
[1756686962450,5.89804357,199.03,199.02,55.39559401]
[1756686962971,5.89804357,199.03,199.02,41.8]
[1756686963636,5.89804357,199.03,198.98,0.03]
[1756686963863,5.89804357,199.03,198.87,215.7]
[1756686963864,5.89804357,199.01,198.89,233.82606062]
[1756686964061,5.89804357,199.01,198.95,13.59559401]
[1756686964062,10.92417947,198.96,198.95,13.59559401]
[1756686964246,5.0261359,198.96,198.95,13.59559401]
[1756686964836,10.92417947,198.96,198.95,13.59559401]
[1756686965461,10.92417947,198.96,198.9,33.0]
[1756686965640,26.0,199.05,198.91,55.39559401]
[1756686965845,0.71,199.03,198.93,19.49363758]
[1756686966150,0.71,199.03,198.95,13.59559401]
[1756686966361,5.89804357,198.97,198.9,59.0]
[1756686966553,5.89804357,198.95,198.91,13.59559401]
[1756686966756,42.70927544,199.02,198.92,41.8]
[1756686966757,5.89804357,198.94,198.92,41.8]
[1756686967267,5.89804357,198.93,198.92,55.39559401]
[1756686967769,6.60804357,198.93,198.89,233.82606062]
[1756686967965,5.89804357,198.9,198.89,233.82606062]
[1756686968172,5.89804357,198.9,198.89,247.42165463]
[1756686968377,5.89804357,198.92,198.9,13.59559401]
[1756686968674,5.89804357,198.91,198.9,13.59559401]
[1756686968968,5.89804357,198.92,198.9,13.59559401]
[1756686969264,5.89804357,198.95,198.92,13.59559401]
[1756686969469,5.89804357,198.95,198.93,41.82]
[1756686969654,5.89804357,198.97,198.93,41.82]
[1756686969855,5.89804357,198.97,198.95,13.59559401]
[1756686970075,5.89804357,198.97,198.96,55.41559401]
[1756686970367,5.0248872,199.01,198.97,13.59559401]
[1756686970543,0.71,199.05,198.97,14.25559401]
[1756686970750,5.89804357,199.01,198.97,14.25559401]
[1756686970953,5.89804357,199.0,198.97,13.59559401]
[1756686971159,5.89804357,198.99,198.97,13.59559401]
[1756686971578,5.73335861,199.07,198.99,13.59559401]
[1756686971757,5.89804357,199.03,199.0,41.82]
[1756686972078,5.89804357,199.01,199.0,55.41559401]
[1756686972249,11.63291669,199.01,199.0,55.41559401]
[1756686972444,10.92291669,199.01,199.0,55.41559401]
[1756686972644,11.63291669,199.01,198.93,13.59559401]
[1756686972870,5.89804357,198.96,198.94,41.82]
[1756686973264,5.89804357,198.96,198.95,55.41559401]
[1756686973977,6.60804357,198.96,198.95,55.41559401]
[1756686974167,6.60804357,198.96,198.89,233.82606062]
[1756686974168,11.63417947,198.96,198.89,233.82606062]
[1756686974491,0.71,198.95,198.89,233.82606062]
[1756686974772,5.89804357,198.9,198.89,233.82606062]
[1756686974976,6.60804357,198.9,198.89,207.34455208]
[1756686975271,0.71,198.94,198.89,207.34455208]
[1756686975447,5.89804357,198.9,198.89,207.34455208]
[1756686975649,6.60804357,198.9,198.89,150.01724159]
[1756686975963,6.60804357,198.9,198.89,96.73292931]
[1756686976162,11.63569565,198.9,198.89,39.13271937]
[1756686976352,11.63569565,198.9,198.89,1e-08]
[1756686976545,5.02689388,198.93,198.89,1e-08]
[1756686976745,5.89804357,198.9,198.89,1e-08]
[1756686976977,5.02689388,198.93,198.89,1e-08]
[1756686977478,5.89804357,198.9,198.89,1e-08]
[1756686977782,5.02689388,198.93,198.89,1e-08]
[1756686977783,5.02512562,199.0,198.91,13.59559401]
[1756686977961,5.89804357,198.92,198.91,13.59559401]
[1756686978284,5.89804357,198.94,198.91,14.25559401]
[1756686978592,17.58617224,199.02,198.93,13.59559401]
[1756686978785,5.89804357,198.94,198.89,1e-08]
[1756686979076,5.89804357,198.9,198.89,14.25559402]
[1756686979274,5.89804357,198.9,198.89,1e-08]
[1756686979478,6.50804357,198.9,198.89,1e-08]
[1756686979681,5.89804357,198.9,198.89,1e-08]
[1756686980051,26.0,198.95,198.89,1e-08]
[1756686980371,5.89804357,198.91,198.9,13.59559401]